fUSD/lending_fUSD_20241225
["ID","MTS","AMOUNT","RATE_DAILY","PERIOD"]
[346576037,1735109432783,-500.0,9.798e-05,2]
[346576039,1735109432792,-500.0,9.798e-05,2]
[346576041,1735109432801,-500.0,9.798e-05,2]
[346576042,1735109432810,-500.0,9.798e-05,2]
[346576043,1735109432819,-500.0,9.798e-05,2]
[346576044,1735109432828,-500.0,9.798e-05,2]
[346576045,1735109432838,-567.85,9.798e-05,2]
[346576046,1735109432847,-552.15,9.798e-05,2]
[346576047,1735109432856,-500.0,9.798e-05,2]
[346576048,1735109432866,-500.0,9.798e-05,2]
[346576049,1735109432875,-500.0,9.798e-05,2]
[346576050,1735109432884,-500.0,9.798e-05,2]
[346576051,1735109432893,-500.0,9.798e-05,2]
[346576052,1735109432902,-1374.01,9.798e-05,2]
[346576053,1735109432911,-648.70728061,9.798e-05,2]
[346576054,1735109432923,-500.0,9.798e-05,2]
[346576055,1735109432932,-580.3,9.798e-05,2]
[346576056,1735109432941,-500.0,9.798e-05,2]
[346576057,1735109432950,-500.0,9.798e-05,2]
[346576058,1735109432960,-500.0,9.798e-05,2]
[346576059,1735109432969,-500.0,9.798e-05,2]
[346576060,1735109432978,-973.19,9.798e-05,2]
[346576061,1735109432987,-500.0,9.798e-05,2]
[346576062,1735109432996,-500.0,9.798e-05,2]
[346576063,1735109433005,-500.0,9.798e-05,2]
[346576064,1735109433014,-500.0,9.798e-05,2]
[346576065,1735109433024,-677.51,9.798e-05,2]
[346576066,1735109433033,-2376.5,9.798e-05,2]
[346576067,1735109433044,-500.0,9.798e-05,2]
[346576068,1735109433053,-500.0,9.798e-05,2]
[346576069,1735109433063,-117.55053372,9.798e-05,2]
[346576070,1735109433076,-2240.55946628,9.798e-05,2]
[346576071,1735109433085,-868.23,9.798e-05,2]
[346576072,1735109433095,-500.0,9.798e-05,2]
[346576073,1735109433104,-500.0,9.798e-05,2]
[346576074,1735109433114,-3241.3691861,9.798e-05,2]
[346576075,1735109433127,-2599.7608139,9.798e-05,2]
[346576076,1735109433136,-1614.02,9.798e-05,2]
[346576077,1735109433145,-500.0,9.798e-05,2]
[346576078,1735109433155,-705.68,9.798e-05,2]
[346576079,1735109433166,-500.0,9.798e-05,2]
[346576080,1735109433175,-3721.21,9.798e-05,2]
[346576081,1735109433186,-500.0,9.798e-05,2]
[346576082,1735109433195,-604.15,9.798e-05,2]
[346576083,1735109433205,-516.99233798,9.798e-05,2]
[346576084,1735109433214,-500.0,9.798e-05,2]
[346576085,1735109433224,-1297.96,9.798e-05,2]
[346576086,1735109433234,-633.56,9.798e-05,2]
[346576087,1735109433243,-570.88,9.798e-05,2]
[346576088,1735109433252,-500.0,9.798e-05,2]
[346576089,1735109433263,-500.0,9.798e-05,2]
[346576090,1735109433273,-993.72,9.798e-05,2]
[346576091,1735109433283,-500.0,9.798e-05,2]
[346576092,1735109433293,-4237.88,9.798e-05,2]
[346576093,1735109433304,-500.0,9.798e-05,2]
[346576094,1735109433314,-5930.83,9.798e-05,2]
[346576095,1735109433326,-500.0,9.798e-05,2]
[346576096,1735109433336,-500.0,9.798e-05,2]
[346576097,1735109433345,-10328.22,9.798e-05,2]
[346576098,1735109433355,-1156.5,9.798e-05,2]
[346576099,1735109433365,-3322.58,9.798e-05,2]
[346576100,1735109433375,-500.0,9.798e-05,2]
[346576101,1735109433384,-2773.15,9.798e-05,2]
[346576102,1735109433394,-3753.47,9.798e-05,2]
[346576103,1735109433404,-586.7,9.798e-05,2]
[346576104,1735109433416,-500.0,9.798e-05,2]
[346576105,1735109433426,-500.0,9.798e-05,2]
[346576106,1735109433436,-821.03,9.798e-05,2]
[346576107,1735109433445,-1914.09,9.798e-05,2]
[346576108,1735109433455,-500.0,9.798e-05,2]
[346576109,1735109433466,-7744.4,9.798e-05,2]
[346576110,1735109433475,-500.0,9.798e-05,2]
[346576111,1735109433485,-500.0,9.798e-05,2]
[346576112,1735109433495,-500.0,9.798e-05,2]
[346576113,1735109433505,-4261.91,9.798e-05,2]
[346576114,1735109433515,-500.0,9.798e-05,2]
[346576115,1735109433525,-500.0,9.798e-05,2]
[346576116,1735109433534,-500.0,9.798e-05,2]
[346576117,1735109433544,-500.0,9.798e-05,2]
[346576118,1735109433554,-2537.03,9.798e-05,2]
[346576119,1735109433563,-651.83,9.798e-05,2]
[346576120,1735109433573,-500.0,9.798e-05,2]
[346576121,1735109433583,-1004.79,9.798e-05,2]
[346576122,1735109433592,-887.01,9.798e-05,2]
[346576123,1735109433785,-500.0,9.798e-05,2]
[346576124,1735109433795,-528.87,9.798e-05,2]
[346576125,1735109433804,-19957.27,9.798e-05,2]
[346576126,1735109433814,-500.0,9.798e-05,2]
[346576127,1735109433823,-662.12,9.798e-05,2]
[346576128,1735109433833,-500.0,9.798e-05,2]
[346576129,1735109433843,-500.0,9.798e-05,2]
[346576130,1735109433852,-507.7828969,9.799e-05,2]
[346576131,1735109433861,-521.12240026,9.799e-05,2]
[346576132,1735109433870,-500.0,9.799e-05,2]
[346576133,1735109433880,-2238.39,9.799e-05,2]
[346576134,1735109433890,-500.0,9.799e-05,2]
[346576135,1735109433899,-392.00649263,9.799e-05,2]
[346576136,1735109433908,-454.18112229,9.799e-05,2]
[346576137,1735109433919,-500.0,9.799e-05,2]
[346576138,1735109433928,-500.0,9.799e-05,2]
[346576139,1735109433938,-746.82,9.799e-05,2]
[346576140,1735109433947,-1288.57,9.799e-05,2]
[346576141,1735109433956,-500.0,9.799e-05,2]
[346576142,1735109433965,-500.0,9.799e-05,2]
[346576143,1735109433974,-1696.88,9.799e-05,2]
[346576144,1735109433983,-500.0,9.799e-05,2]
[346576145,1735109433992,-590.32,9.799e-05,2]
[346576146,1735109434001,-500.0,9.799e-05,2]
[346576147,1735109434011,-500.0,9.799e-05,2]
[346576148,1735109434020,-1115.26,9.799e-05,2]
[346576149,1735109434030,-2696.61,9.799e-05,2]
[346576150,1735109434039,-1570.78,9.799e-05,2]
[346576151,1735109434048,-1991.13,9.799e-05,2]
[346576152,1735109434057,-319.9350853,9.799e-05,2]
[346576153,1735109434067,-1761.02,9.799e-05,2]
[346576154,1735109434076,-1297.38,9.799e-05,2]
[346576155,1735109434085,-500.0,9.799e-05,2]
[346576156,1735109434094,-803.11,9.799e-05,2]
[346576157,1735109434103,-714.36,9.799e-05,2]
[346576158,1735109434112,-1063.86,9.799e-05,2]
[346576159,1735109434122,-498.69132494,9.799e-05,2]
[346576160,1735109434132,-543.46,9.799e-05,2]
[346576161,1735109434142,-500.0,9.799e-05,2]
[346576162,1735109434151,-1588.1,9.799e-05,2]
[346576163,1735109434160,-843.3,9.799e-05,2]
[346576164,1735109434171,-500.0,9.799e-05,2]
[346576165,1735109434180,-731.12,9.799e-05,2]
[346576166,1735109434190,-500.0,9.799e-05,2]
[346576167,1735109434199,-2232.08,9.799e-05,2]
[346576168,1735109434208,-500.0,9.799e-05,2]
[346576169,1735109434218,-500.0,9.799e-05,2]
[346576170,1735109434227,-2017.53,9.799e-05,2]
[346576171,1735109434236,-1864.77,9.799e-05,2]
[346576172,1735109434245,-500.0,9.799e-05,2]
[346576173,1735109434255,-619.8,9.799e-05,2]
[346576174,1735109434264,-500.0,9.799e-05,2]
[346576175,1735109434274,-1210.44,9.799e-05,2]
[346576176,1735109434283,-500.0,9.799e-05,2]
[346576177,1735109434293,-571.52,9.799e-05,2]
[346576178,1735109434303,-2124.3,9.799e-05,2]
[346576179,1735109434312,-500.0,9.799e-05,2]
[346576180,1735109434324,-808.84,9.799e-05,2]
[346576181,1735109434333,-610.7,9.799e-05,2]
[346576182,1735109434343,-500.0,9.799e-05,2]
[346576183,1735109434352,-500.0,9.799e-05,2]
[346576184,1735109434362,-1191.01,9.799e-05,2]
[346576185,1735109434371,-500.0,9.799e-05,2]
[346576186,1735109434380,-500.0,9.799e-05,2]
[346576187,1735109434390,-882.03,9.799e-05,2]
[346576188,1735109434399,-554.6,9.799e-05,2]
[346576189,1735109434409,-715.33,9.799e-05,2]
[346576190,1735109434419,-1085.04,9.799e-05,2]
[346576191,1735109434428,-2872.86,9.799e-05,2]
[346576192,1735109434437,-801.5,9.799e-05,2]
[346576193,1735109434446,-1474.17,9.799e-05,2]
[346576194,1735109434456,-1404.5,9.799e-05,2]
[346576195,1735109434465,-500.0,9.799e-05,2]
[346576196,1735109434474,-506.12,9.799e-05,2]
[346576197,1735109434483,-2396.14,9.799e-05,2]
[346576198,1735109434492,-1598.58,9.799e-05,2]
[346576199,1735109434502,-1022.19,9.799e-05,2]
[346576200,1735109434512,-541.91,9.799e-05,2]
[346576201,1735109434521,-2913.95,9.799e-05,2]
[346576202,1735109434530,-1473.36,9.799e-05,2]
[346576203,1735109434540,-1268.41,9.799e-05,2]
[346576204,1735109434549,-1846.08,9.799e-05,2]
[346576205,1735109434558,-3069.3,9.799e-05,2]
[346576206,1735109434567,-500.0,9.799e-05,2]
[346576207,1735109434577,-739.53,9.799e-05,2]
[346576208,1735109434587,-969.62,9.799e-05,2]
[346576209,1735109434596,-1461.62,9.799e-05,2]
[346576210,1735109434605,-500.0,9.799e-05,2]
[346576211,1735109434614,-761.53,9.799e-05,2]
[346576212,1735109434623,-500.0,9.799e-05,2]
[346576213,1735109434632,-3149.59,9.799e-05,2]
[346576214,1735109434642,-2719.39,9.799e-05,2]
[346576215,1735109434651,-500.0,9.799e-05,2]
[346576216,1735109434660,-500.0,9.799e-05,2]
[346576217,1735109434670,-3153.63,9.799e-05,2]
[346576218,1735109434680,-1953.77,9.799e-05,2]
[346576219,1735109434690,-1448.6,9.799e-05,2]
[346576220,1735109434700,-500.0,9.799e-05,2]
[346576221,1735109434709,-503.64706729,9.799e-05,2]
[346576222,1735109434719,-500.0,9.799e-05,2]
[346576223,1735109434728,-527.85,9.799e-05,2]
[346576224,1735109434738,-5391.72,9.799e-05,2]
[346576225,1735109434747,-1748.06,9.799e-05,2]
[346576226,1735109434756,-1100.79,9.799e-05,2]
[346576227,1735109434766,-4229.21,9.799e-05,2]
[346576228,1735109434775,-2488.5,9.799e-05,2]
[346576229,1735109434785,-6103.54,9.799e-05,2]
[346576230,1735109434794,-6103.54,9.799e-05,2]
[346576231,1735109434803,-6103.54,9.799e-05,2]
[346576232,1735109434813,-6103.54,9.799e-05,2]
[346576233,1735109434823,-6103.54,9.799e-05,2]
[346576234,1735109434832,-6103.54,9.799e-05,2]
[346576235,1735109434841,-1582.98,9.799e-05,2]
[346576236,1735109434851,-703.55,9.799e-05,2]
[346576237,1735109434861,-5459.27,9.799e-05,2]
[346576238,1735109434870,-10487.31,9.799e-05,2]
[346576239,1735109434879,-1658.5,9.799e-05,2]
[346576240,1735109434889,-1459.8,9.799e-05,2]
[346576241,1735109434898,-1800.99,9.799e-05,2]
[346576242,1735109434907,-1731.23,9.799e-05,2]
[346576243,1735109434916,-6012.8,9.799e-05,2]
[346576244,1735109434925,-3841.72,9.799e-05,2]
[346576245,1735109434934,-1634.92,9.799e-05,2]
[346576246,1735109434943,-609.57294019,9.799e-05,2]
[346576247,1735109434952,-26098.72,9.799e-05,2]
[346576248,1735109434963,-2555.98,9.799e-05,2]
[346576249,1735109434972,-503.7271575,9.799e-05,2]
[346576250,1735109434981,-6344.49,9.799e-05,2]
[346576251,1735109434990,-2398.63,9.799e-05,2]
[346576252,1735109434999,-10214.08,9.799e-05,2]
[346576253,1735109435009,-170.18329403,9.799e-05,2]
[346576254,1735109435018,-1000.97,9.799e-05,2]
[346576255,1735109435028,-579.54,9.799e-05,2]
[346576256,1735109435037,-9227.16,9.799e-05,2]
[346576257,1735109435046,-546.19374013,9.799e-05,2]
[346576258,1735109435055,-557.25,9.799e-05,2]
[346576259,1735109435065,-1391.89,9.799e-05,2]
[346576260,1735109435074,-5643.14,9.799e-05,2]
[346576261,1735109435084,-1392.15,9.799e-05,2]
[346576262,1735109435093,-500.0,9.799e-05,2]
[346576263,1735109435103,-11216.97,9.799e-05,2]
[346576264,1735109435112,-2645.78,9.799e-05,2]
[346576265,1735109435121,-18017.64,9.799e-05,2]
[346576266,1735109435131,-1935.91,9.799e-05,2]
[346576267,1735109435140,-11606.24,9.799e-05,2]
[346576268,1735109435150,-11236.81,9.799e-05,2]
[346576269,1735109435159,-2659.15,9.799e-05,2]
[346576270,1735109435171,-156.27,9.801e-05,2]
[346576271,1735109435181,-156.27,9.804e-05,2]
[346576272,1735109435191,-156.27,9.807e-05,2]
[346576273,1735109435200,-156.27,9.81e-05,2]
[346576274,1735109435209,-250.0,9.901e-05,2]
[346576275,1735109435219,-1000.0,9.941e-05,2]
[346576276,1735109435228,-772.3267495,0.0001,2]
[346576277,1735109435237,-500.0,0.00010071,2]
[346576278,1735109435246,-427.62819899,0.00010071,2]
[346576279,1735109435255,-500.0,0.00010072,2]
[346576280,1735109435264,-500.0,0.00010072,2]
[346576281,1735109435273,-620.11,0.00010072,2]
[346576282,1735109435282,-500.0,0.00010072,2]
[346576283,1735109435293,-500.0,0.00010072,2]
[346576284,1735109435303,-500.0,0.00010072,2]
[346576285,1735109435312,-542.49,0.00010072,2]
[346576286,1735109435323,-500.0,0.00010072,2]
[346576287,1735109435336,-1005.2,0.00010072,2]
[346576288,1735109435345,-500.0,0.00010072,2]
[346576289,1735109435355,-500.0,0.00010072,2]
[346576290,1735109435364,-500.0,0.00010072,2]
[346576291,1735109435374,-500.0,0.00010072,2]
[346576292,1735109435383,-816.04,0.00010072,2]
[346576293,1735109435392,-2276.23,0.00010072,2]
[346576294,1735109435402,-500.0,0.00010072,2]
[346576295,1735109435411,-500.0,0.00010072,2]
[346576296,1735109435420,-500.0,0.00010072,2]
[346576297,1735109435429,-3922.32,0.00010072,2]
[346576298,1735109435438,-500.0,0.00010072,2]
[346576299,1735109435447,-500.0,0.00010072,2]
[346576300,1735109435457,-500.0,0.00010072,2]
[346576301,1735109435467,-2381.11,0.00010072,2]
[346576302,1735109435476,-500.0,0.00010072,2]
[346576303,1735109435485,-500.0,0.00010072,2]
[346576304,1735109435495,-620.91,0.00010072,2]
[346576305,1735109435504,-1514.56,0.00010072,2]
[346576306,1735109435513,-500.0,0.00010072,2]
[346576307,1735109435522,-770.79,0.00010072,2]
[346576308,1735109435531,-1014.27,0.00010072,2]
[346576309,1735109435540,-507.11,0.00010072,2]
[346576310,1735109435549,-1510.41,0.00010072,2]
[346576311,1735109435559,-500.0,0.00010072,2]
[346576312,1735109435569,-731.94,0.00010072,2]
[346576313,1735109435578,-500.0,0.00010072,2]
[346576314,1735109435587,-4393.81,0.00010072,2]
[346576315,1735109435596,-702.58,0.00010072,2]
[346576316,1735109435606,-993.84,0.00010072,2]
[346576317,1735109435615,-500.0,0.00010072,2]
[346576318,1735109435624,-15505.81,0.00010072,2]
[346576319,1735109435634,-512.41956529,0.00010072,2]
[346576320,1735109435643,-500.0,0.00010072,2]
[346576321,1735109435652,-500.0,0.00010072,2]
[346576322,1735109435661,-2977.8,0.00010072,2]
[346576323,1735109435670,-567.85,0.00010072,2]
[346576324,1735109435679,-552.15,0.00010072,2]
[346576325,1735109435689,-566.84418983,0.00010072,2]
[346576326,1735109435698,-1972.76,0.00010072,2]
[346576327,1735109435707,-500.0,0.00010072,2]
[346576328,1735109435716,-500.0,0.00010072,2]
[346576329,1735109435725,-500.0,0.00010072,2]
[346576330,1735109435735,-500.0,0.00010072,2]
[346576331,1735109435744,-2580.46324039,0.00010072,2]
[346576332,1735109435760,-612.23105833,0.00010072,2]
[346576333,1735109435818,-730.88828833,0.00010072,2]
[346576334,1735109435829,-2933.04741295,0.00010072,2]
[346576335,1735109435838,-1374.01,0.00010072,2]
[346576336,1735109435847,-500.0,0.00010072,2]
[346576337,1735109435856,-154.32729,0.00010072,2]
[346576338,1735109435865,-156.483897,0.00010072,2]
[346576339,1735109435874,-3036.049048,0.00010072,2]
[346576340,1735109435883,-3772.18,0.00010072,2]
[346576341,1735109435892,-580.3,0.00010072,2]
[346576342,1735109435901,-500.0,0.00010072,2]
[346576343,1735109435910,-500.0,0.00010072,2]
[346576344,1735109435919,-5062.46,0.00010072,2]
[346576345,1735109435928,-1817.54,0.00010072,2]
[346576346,1735109435937,-3061.625829,0.00010072,2]
[346576347,1735109435946,-500.0,0.00010072,2]
[346576348,1735109435955,-21563.4,0.00010072,2]
[346576349,1735109435964,-973.19,0.00010072,2]
[346576350,1735109435973,-500.0,0.00010072,2]
[346576351,1735109435982,-3901.91,0.00010072,2]
[346576352,1735109435991,-500.0,0.00010072,2]
[346576353,1735109436000,-500.0,0.00010072,2]
[346576354,1735109436009,-500.0,0.00010072,2]
[346576355,1735109436018,-2042.02,0.00010072,2]
[346576356,1735109436027,-677.51,0.00010072,2]
[346576357,1735109436036,-2376.5,0.00010072,2]
[346576358,1735109436199,-500.0,0.00010072,2]
[346576359,1735109436209,-544.95122244,0.00010072,2]
[346576360,1735109436218,-500.0,0.00010072,2]
[346576361,1735109436227,-2358.11,0.00010072,2]
[346576362,1735109436237,-868.23,0.00010072,2]
[346576363,1735109436248,-2215.24,0.00010072,2]
[346576364,1735109436258,-500.0,0.00010072,2]
[346576365,1735109436271,-500.0,0.00010072,2]
[346576366,1735109436282,-3740.0,0.00010072,2]
[346576367,1735109436291,-5841.13,0.00010072,2]
[346576368,1735109436301,-1614.02,0.00010072,2]
[346576369,1735109436310,-500.0,0.00010072,2]
[346576370,1735109436320,-4456.31,0.00010072,2]
[346576371,1735109436331,-705.68,0.00010072,2]
[346576372,1735109436340,-500.0,0.00010072,2]
[346576373,1735109436349,-1390.78,0.00010072,2]
[346576374,1735109436358,-3721.21,0.00010072,2]
[346576375,1735109436366,-500.0,0.00010072,2]
[346576376,1735109436376,-604.15,0.00010072,2]
[346576377,1735109436386,-500.0,0.00010072,2]
[346576378,1735109436395,-3000.73,0.00010072,2]
[346576379,1735109436404,-1297.96,0.00010072,2]
[346576380,1735109436415,-633.56,0.00010072,2]
[346576381,1735109436425,-570.88,0.00010072,2]
[346576382,1735109436434,-500.0,0.00010072,2]
[346576383,1735109436444,-500.0,0.00010072,2]
[346576384,1735109436454,-993.72,0.00010072,2]
[346576385,1735109436464,-7979.02,0.00010072,2]
[346576386,1735109436474,-1659.11,0.00010072,2]
[346576387,1735109436483,-500.0,0.00010072,2]
[346576388,1735109436492,-4237.88,0.00010072,2]
[346576389,1735109436501,-500.0,0.00010072,2]
[346576390,1735109436510,-5930.83,0.00010072,2]
[346576391,1735109436519,-500.0,0.00010072,2]
[346576392,1735109436529,-500.0,0.00010072,2]
[346576393,1735109436538,-3976.51,0.00010072,2]
[346576394,1735109436547,-10328.22,0.00010072,2]
[346576395,1735109436557,-500.0,0.00010072,2]
[346576396,1735109436566,-1156.5,0.00010072,2]
[346576397,1735109436575,-3322.58,0.00010072,2]
[346576398,1735109436584,-500.0,0.00010072,2]
[346576399,1735109436593,-20107.93,0.00010072,2]
[346576400,1735109436602,-2773.15,0.00010072,2]
[346576401,1735109436612,-3753.47,0.00010072,2]
[346576402,1735109436621,-11697.12,0.00010072,2]
[346576403,1735109436630,-586.7,0.00010072,2]
[346576404,1735109436639,-500.0,0.00010072,2]
[346576405,1735109436648,-821.03,0.00010072,2]
[346576406,1735109436659,-13898.82,0.00010072,2]
[346576407,1735109436668,-1914.09,0.00010072,2]
[346576408,1735109436677,-500.0,0.00010072,2]
[346576409,1735109436687,-7744.4,0.00010072,2]
[346576410,1735109436697,-500.0,0.00010072,2]
[346576411,1735109436706,-500.0,0.00010072,2]
[346576412,1735109436715,-502.59,0.00010072,2]
[346576413,1735109436725,-500.0,0.00010072,2]
[346576414,1735109436735,-4261.91,0.00010072,2]
[346576415,1735109436745,-1884.31,0.00010072,2]
[346576416,1735109436755,-500.0,0.00010072,2]
[346576417,1735109436764,-500.0,0.00010072,2]
[346576418,1735109436774,-500.0,0.00010072,2]
[346576419,1735109436784,-503.28344717,0.00010072,2]
[346576420,1735109436794,-2537.03,0.00010072,2]
[346576421,1735109436803,-651.83,0.00010072,2]
[346576422,1735109436812,-500.0,0.00010072,2]
[346576423,1735109436821,-1004.79,0.00010072,2]
[346576424,1735109436830,-887.01,0.00010072,2]
[346576425,1735109436839,-466.18,0.00010072,2]
[346576426,1735109436848,-29163.73,0.00010072,2]
[346576427,1735109436858,-528.87,0.00010072,2]
[346576428,1735109436867,-7895.42706193,0.00010072,2]
[346576429,1735109436879,-12061.84293807,0.00010072,2]
[346576430,1735109436888,-503.27164339,0.00010072,2]
[346576431,1735109436899,-500.0,0.00010072,2]
[346576432,1735109436908,-662.12,0.00010072,2]
[346576433,1735109436917,-273.36,0.00010072,2]
[346576434,1735109436927,-559.31795518,0.00010073,2]
[346576435,1735109436936,-2238.39,0.00010073,2]
[346576436,1735109436945,-500.0,0.00010073,2]
[346576437,1735109436956,-500.0,0.00010073,2]
[346576438,1735109436965,-746.82,0.00010073,2]
[346576439,1735109436975,-1288.57,0.00010073,2]
[346576440,1735109436984,-500.0,0.00010073,2]
[346576441,1735109436993,-1696.88,0.00010073,2]
[346576442,1735109437003,-500.0,0.00010073,2]
[346576443,1735109437012,-590.32,0.00010073,2]
[346576444,1735109437021,-412.82022936,0.00010073,2]
[346576445,1735109437030,-500.0,0.00010073,2]
[346576446,1735109437039,-1115.26,0.00010073,2]
[346576447,1735109437048,-2696.61,0.00010073,2]
[346576448,1735109437057,-1570.78,0.00010073,2]
[346576449,1735109437066,-1991.13,0.00010073,2]
[346576450,1735109437075,-1761.02,0.00010073,2]
[346576451,1735109437085,-1297.38,0.00010073,2]
[346576452,1735109437094,-500.0,0.00010073,2]
[346576453,1735109437103,-803.11,0.00010073,2]
[346576454,1735109437112,-714.36,0.00010073,2]
[346576455,1735109437121,-1063.86,0.00010073,2]
[346576456,1735109437130,-543.46,0.00010073,2]
[346576457,1735109437140,-503.0445124,0.00010073,2]
[346576458,1735109437149,-1588.1,0.00010073,2]
[346576459,1735109437158,-843.3,0.00010073,2]
[346576460,1735109437168,-500.0,0.00010073,2]
[346576461,1735109437178,-731.12,0.00010073,2]
[346576462,1735109437187,-500.0,0.00010073,2]
[346576463,1735109437196,-2232.08,0.00010073,2]
[346576464,1735109437206,-500.0,0.00010073,2]
[346576465,1735109437215,-500.0,0.00010073,2]
[346576466,1735109437224,-2017.53,0.00010073,2]
[346576467,1735109437233,-1864.77,0.00010073,2]
[346576468,1735109437243,-500.0,0.00010073,2]
[346576469,1735109437252,-619.8,0.00010073,2]
[346576470,1735109437261,-500.0,0.00010073,2]
[346576471,1735109437270,-1210.44,0.00010073,2]
[346576472,1735109437280,-500.0,0.00010073,2]
[346576473,1735109437289,-571.52,0.00010073,2]
[346576474,1735109437299,-2124.3,0.00010073,2]
[346576475,1735109437308,-500.0,0.00010073,2]
[346576476,1735109437318,-808.84,0.00010073,2]
[346576477,1735109437331,-610.7,0.00010073,2]
[346576478,1735109437340,-500.0,0.00010073,2]
[346576479,1735109437349,-500.0,0.00010073,2]
[346576480,1735109437358,-1191.01,0.00010073,2]
[346576481,1735109437369,-500.0,0.00010073,2]
[346576482,1735109437378,-882.03,0.00010073,2]
[346576483,1735109437387,-554.6,0.00010073,2]
[346576484,1735109437398,-715.33,0.00010073,2]
[346576485,1735109437407,-1085.04,0.00010073,2]
[346576486,1735109437417,-2872.86,0.00010073,2]
[346576487,1735109437426,-801.5,0.00010073,2]
[346576488,1735109437435,-1474.17,0.00010073,2]
[346576489,1735109437444,-1404.5,0.00010073,2]
[346576490,1735109437453,-466.37141203,0.00010073,2]
[346576491,1735109437463,-506.12,0.00010073,2]
[346576492,1735109437473,-2396.14,0.00010073,2]
[346576493,1735109437482,-1598.58,0.00010073,2]
[346576494,1735109437491,-1022.19,0.00010073,2]
[346576495,1735109437500,-541.91,0.00010073,2]
[346576496,1735109437510,-2913.95,0.00010073,2]
[346576497,1735109437519,-1473.36,0.00010073,2]
[346576498,1735109437528,-1268.41,0.00010073,2]
[346576499,1735109437537,-1846.08,0.00010073,2]
[346576500,1735109437547,-3069.3,0.00010073,2]
[346576501,1735109437556,-500.0,0.00010073,2]
[346576502,1735109437565,-739.53,0.00010073,2]
[346576503,1735109437576,-969.62,0.00010073,2]
[346576504,1735109437585,-1461.62,0.00010073,2]
[346576505,1735109437595,-761.53,0.00010073,2]
[346576506,1735109437605,-500.0,0.00010073,2]
[346576507,1735109437614,-3149.59,0.00010073,2]
[346576508,1735109437623,-2719.39,0.00010073,2]
[346576509,1735109437633,-500.0,0.00010073,2]
[346576510,1735109437642,-500.0,0.00010073,2]
[346576511,1735109437652,-3153.63,0.00010073,2]
[346576512,1735109437662,-1953.77,0.00010073,2]
[346576513,1735109437672,-1448.6,0.00010073,2]
[346576514,1735109437682,-500.0,0.00010073,2]
[346576515,1735109437691,-527.85,0.00010073,2]
[346576516,1735109437701,-5391.72,0.00010073,2]
[346576517,1735109437711,-1748.06,0.00010073,2]
[346576518,1735109437720,-1100.79,0.00010073,2]
[346576519,1735109437729,-4229.21,0.00010073,2]
[346576520,1735109437739,-2488.5,0.00010073,2]
[346576521,1735109437748,-1582.98,0.00010073,2]
[346576522,1735109437757,-703.55,0.00010073,2]
[346576523,1735109437767,-5459.27,0.00010073,2]
[346576525,1735109437776,-10487.31,0.00010073,2]
[346576526,1735109437786,-1658.5,0.00010073,2]
[346576527,1735109437795,-1459.8,0.00010073,2]
[346576528,1735109437805,-1800.99,0.00010073,2]
[346576529,1735109437815,-1731.23,0.00010073,2]
[346576530,1735109437824,-6012.8,0.00010073,2]
[346576531,1735109437833,-3841.72,0.00010073,2]
[346576532,1735109437842,-1634.92,0.00010073,2]
[346576533,1735109437852,-26098.72,0.00010073,2]
[346576534,1735109437861,-913.89625172,0.00010073,2]
[346576535,1735109437874,-1642.08374828,0.00010073,2]
[346576536,1735109437883,-6344.49,0.00010073,2]
[346576537,1735109437892,-2398.63,0.00010073,2]
[346576538,1735109437902,-10214.08,0.00010073,2]
[346576539,1735109437911,-1000.97,0.00010073,2]